Cogmind - Beta 16 @@@ ROGUE MODE // 2025.10.22 @ 18:49:28 Player: zeyvai Result: Destroyed by G-47 Trooper with Particle Gun Performance ------------- Evolutions (2) 1000 Regions Visited (3) 600 Robots Destroyed (26) 130 Value Destroyed (738) 738 Prototype IDs (2) 40 Alien Tech Used (0) 0 Bonus (0) 0 TOTAL SCORE: 2508 Bonus ------- None Cogmind --------- Core Integrity 0/550 Matter 451/500 Energy 244/250 System Corruption 0% Temperature Cool (9) Movement Walking (120) Location -8/Materials Parts ------- > --- POWER (2) -------- Ion Engine > --- PROPULSION (2) --- Aluminum Leg Aluminum Leg > --- UTILITY (5) ------ Improved Heat Sink High-capacity Matter Pod Terrain Scan Processor > --- WEAPON (2) ------- Minigun > --- INVENTORY (5) ---- Wheel Peak State ------------ > --- POWER ------------ Reinforced Ion Engine > --- PROPULSION ------- Light Treads Light Treads > --- UTILITY ---------- Small Storage Unit High-capacity Matter Pod Structural Scanner Terrain Scan Processor Seismic Detector > --- WEAPON ----------- Improved Medium Laser Improved Datajack > --- INVENTORY -------- Aluminum Leg Aluminum Leg Wheel Wheel Heat Sink Heat Sink Advanced Beam Rifle [Rating: 17] Favorites ----------- Power Ion Engine Engine Ion Engine Power Core Light Nuclear Core Propulsion Aluminum Leg Treads Light Treads Leg Aluminum Leg Wheel Wheel Utility Small Storage Unit Device Structural Scanner Storage Small Storage Unit Processor Visual Processing Unit Weapon Medium Laser Energy Gun Medium Laser Ballistic Gun Minigun Special Melee Weapon Improved Datajack Build | -11 -10 -9 -8 ------- Run | Yrd Mat Mat Mat Slots Evolved 4 | . . 2 2 Power 1 | . . 1 . Propulsion . | . . . . Utility 3 | . . 1 2 Weapon . | . . . . Parts Attached 30 | 6 1 13 10 Power 5 | 1 . 2 2 Engine 4 | 1 . 2 1 Core 1 | . . . 1 Reactor . | . . . . Propulsion 9 | 2 . 5 2 Treads 2 | . . 2 . Leg 4 | 2 . . 2 Wheel 3 | . . 3 . Hover . | . . . . Flight . | . . . . Utility 7 | 1 1 2 3 Device 3 | . . 1 2 Storage 2 | 1 1 . . Processor 2 | . . 1 1 Hackware . | . . . . Protection . | . . . . Artifact . | . . . . Weapon 9 | 2 . 4 3 Energy Gun 7 | 2 . 4 1 Energy Cannon . | . . . . Ballistic Gun 1 | . . . 1 Ballistic Cannon . | . . . . Launcher . | . . . . Special Weapon . | . . . . Impact Weapon . | . . . . Slashing Weapon . | . . . . Piercing Weapon . | . . . . Special Melee Weapon 1 | . . . 1 Unidentified Prototypes 2 | . . 1 1 Parts Lost 22 | . . 12 10 Power 3 | . . 1 2 Propulsion 7 | . . 5 2 Utility 4 | . . 1 3 Weapon 8 | . . 5 3 Highest Loss Streak 7 | . . 6 7 To Critical Strikes . | . . . . Average Backups 6 | 4 6 7 4 Power . | . 1 . . Propulsion 3 | 3 4 3 3 Utility 1 | . . 1 1 Weapon 1 | . 1 1 . Tool/Special . | . . . . Unused Backups 4 | . . 1 3 Power . | . . . . Propulsion 2 | . . . 2 Utility 2 | . . 1 1 Weapon . | . . . . Tool/Special . | . . . . Average Slot Usage (%) 84 | . 95 86 66 Engine 12 | . 14 14 5 Treads 4 | . . 2 12 Leg 12 | . 28 11 3 Wheel 3 | . . 5 . Device 3 | . . . 14 Storage 20 | . 23 22 12 Processor 7 | . . 8 9 Energy Gun 18 | . 28 20 6 Peak Build Rating 17 | 6 7 13 17 Average Rating 9 | 4 6 10 11 On Entrance 5 | . 6 7 10 Avg Prop Armor Cover (%) . | . . . . Naked Turns . | . . . . Heaviest Build 28 | 14 18 28 25 Greatest Support 40 | 20 20 40 40 Greatest Overweight (x) 7 | 3 . 7 1 Average Overweight (x) . | . . . . Largest Inventory Capacity 8 | 8 8 8 8 Average Capacity 7 | 7 8 8 6 Most Carried 8 | 7 7 8 7 Average Carried 6 | 4 6 7 4 Final Capacity 8 | 8 8 8 5 Final Carried 8 | 6 6 8 1 Class Distribution -------------------- 96% | Mutant 3% | Scavenger-Mutant Dominant Class ---------------- Mutant | -10/Materials Mutant | -9/Materials Mutant | -8/Materials Resources | -11 -10 -9 -8 ----------- Run | Yrd Mat Mat Mat Matter Collected 740 | 188 39 470 43 Remotely . | . . . . Salvage Created 979 | . 85 642 252 Parts 53 | . 7 35 11 Haulers Intercepted 1 | . . . 1 Recyclers Shooed . | . . . . Parts Field Recycled . | . . . . Retrieved Matter . | . . . . Parts Self-Destructed . | . . . . Prevented . | . . . . Parts Restored . | . . . . Kills | -11 -10 -9 -8 ------- Run | Yrd Mat Mat Mat Combat Hostiles Destroyed 20 | . 4 13 3 Guns 18 | . 4 12 2 Classes Destroyed 9 | . 2 4 3 Worker 1 | . . . 1 Builder 1 | . . 1 . Tunneler 1 | . . . 1 Hauler 1 | . . . 1 Watcher 2 | . . 2 . Swarmer 3 | . 3 . . Grunt 12 | . 1 9 2 Duelist 1 | . . 1 . Sentry 4 | . . 3 1 Best Kill Streak 5 | . 3 5 4 Combat Bots Only 4 | . 3 4 1 Max Kills in Single Turn 1 | . 1 1 1 Gunslinging . | . . . . Exploded . | . . . . Melee . | . . . . Uniques/NPCs Destroyed . | . . . . Combat | -11 -10 -9 -8 -------- Run | Yrd Mat Mat Mat Hostile Shots Fired 261 | . 18 130 113 Missed 69 | . 2 28 39 Hits 192 | . 16 102 74 Melee 7 | . . 7 . Projectile 185 | . 16 95 74 Critical Strikes 8 | . . 2 6 Damage Taken 2689 | . 140 1355 1194 Core 953 | . 8 392 553 Absorbed by Shields . | . . . . Core Remaining (%) 66 | 100 96 2 . Volleys Fired 125 | . 8 81 36 Largest 2 | . 2 2 1 Hottest 96 | . 90 96 61 Shots Fired 172 | . 16 120 36 Gun 172 | . 16 120 36 Cannon . | . . . . Launcher . | . . . . Special . | . . . . Kinetic 3 | . . . 3 Thermal 147 | . 8 106 33 Explosive . | . . . . Electromagnetic 22 | . 8 14 . Robot Hit Streak 7 | . 4 7 6 Robot Miss Streak 4 | . 2 3 4 Penetration Max . | . . . . Secondary Targets 1 | . . 1 . Max Gunslinging Chain 1 | . . 1 . Shots Hit Robots 105 | . 9 78 18 Core Hits 43 | . 5 29 9 Critical Kills . | . . . . Critical Parts Destroyed . | . . . . Critical Strikes 8 | . 1 5 2 Burn 8 | . 1 5 2 Melee Attacks . | . . . . Impact . | . . . . Slashing . | . . . . Piercing . | . . . . Sneak Attacks . | . . . . Combat Hostiles . | . . . . Follow-up Attacks . | . . . . Damage Inflicted 1657 | . 123 1132 402 Guns 1645 | . 123 1120 402 Cannons . | . . . . Explosions . | . . . . Melee . | . . . . Ramming 12 | . . 12 . Kinetic 17 | . . . 17 Thermal 1412 | . 50 977 385 Explosive . | . . . . Electromagnetic 216 | . 73 143 . Impact . | . . . . Slashing . | . . . . Piercing . | . . . . Highest Corruption 2 | . . 2 . Average Corruption 2 | . . 2 . Corruption Purged . | . . . . Corruption Blocked . | . . . . Effects 5 | . . 5 . Message Errors 2 | . . 2 . Matter Fused 1 | . . 1 . Energy Discharges 1 | . . 1 . Weapon Failures 1 | . . 1 . Overload Shots . | . . . . Overflow Damage . | . . . . Projectiles . | . . . . Explosions . | . . . . Melee . | . . . . Knockbacks . | . . . . Impact . | . . . . Kinetic . | . . . . Secondary . | . . . . Self-Inflicted Damage 6 | . . 6 . Shots . | . . . . Rammed 1 | . . 1 . Targets Rammed 1 | . . 1 . Kicked . | . . . . Crushed . | . . . . Highest Temperature 517 | . 162 517 356 Average Temperature 162 | . 73 182 133 Received Heat Transfer 1308 | . 24 528 756 Effects 19 | . . 18 1 Shutdowns 6 | . . 6 . Energy Bleed 1 | . . 1 . Interference 3 | . . 2 1 Matter Decay 3 | . . 3 . Short Circuit 1 | . . 1 . Damage (minor) 1 | . . 1 . Damage (major) 4 | . . 4 . Siege Activations . | . . . . Martial Activations . | . . . . Shielding Activations . | . . . . Robots Disrupted . | . . . . Combat Hostiles . | . . . . Robots Corrupted . | . . . . Combat Hostiles . | . . . . Parts Fried . | . . . . Impact Corruptions . | . . . . Robots Melted 2 | . . 1 1 Combat Hostiles 2 | . . 1 1 Parts Melted 10 | . . 8 2 Heat Transferred 3917 | . 222 2770 925 Parts Sabotaged . | . . . . Parts Stolen . | . . . . Parts Stripped . | . . . . Power Chain Reactions . | . . . . Alert | -11 -10 -9 -8 ------- Run | Yrd Mat Mat Mat Maximum Alert Level . | . . . . Low Security (%) 100 | 100 100 100 100 Level 1 . | . . . . Level 2 . | . . . . Level 3 . | . . . . Level 4 . | . . . . Level 5 . | . . . . High Security . | . . . . Max Security . | . . . . Peak Influence 86 | . 80 86 45 Initial 29 | . . 29 29 Average 22 | . 22 28 13 Influence Increases 571 | . 109 349 113 Destroy 0b10 Robot/C 400 | . 80 260 60 Destroy 0b10 Robot/NC 30 | . . 15 15 Destroy Leader 116 | . 20 74 22 Successful Hack 9 | . 9 . . Destroy Structure 1 | . . . 1 Lose Combat Pursuer 15 | . . . 15 Influence Decreases 571 | . 39 349 183 Entered New Map 82 | . . 41 41 Time Decay 302 | . 39 193 70 Lost Part 187 | . . 115 72 Squads Dispatched 5 | . 1 3 1 Investigation . | . . . . Extermination . | . . . . Reinforcement 5 | . 1 3 1 Assault . | . . . . Garrison . | . . . . Intercept . | . . . . Searches Triggered . | . . . . Construction Impeded . | . . . . Haulers Reinforced . | . . . . Active Scanning Responses . | . . . . Cargo Convoy Interrupts . | . . . . Stealth | -11 -10 -9 -8 --------- Run | Yrd Mat Mat Mat Distress Signals 2 | . 1 . 1 Communications Jammed . | . . . . Distress Signals . | . . . . Times Spotted 37 | . 7 19 11 Peak Tracking Total 5 | . 4 4 5 Tactical Retreats 1 | . . . 1 Traps | -11 -10 -9 -8 ------- Run | Yrd Mat Mat Mat Traps Triggered 1 | . . 1 . Indirectly . | . . . . Trap Hack Attempts . | . . . . Triggered . | . . . . Disarmed . | . . . . Reprogrammed . | . . . . Reused . | . . . . Traps Extracted . | . . . . Installed . | . . . . Triggered . | . . . . Machines | -11 -10 -9 -8 ---------- Run | Yrd Mat Mat Mat Machines Disabled . | . . . . Max in Single Turn . | . . . . Machines Repaired . | . . . . Machines Dismantled . | . . . . Machines Sabotaged . | . . . . Overloaded Fab Kills . | . . . . Hacking | -11 -10 -9 -8 --------- Run | Yrd Mat Mat Mat Machines Accessed 2 | . 2 . . Terminals 2 | . 2 . . Fabricators . | . . . . Repair Stations . | . . . . Recycling Units . | . . . . Scanalyzers . | . . . . Garrison Access . | . . . . Total Hacks 5 | . 5 . . Successful 2 | . 2 . . Failed 3 | . 3 . . Catastrophic . | . . . . Database Lockouts . | . . . . Manual . | . . . . Terminals 5 | . 5 . . Fabricators . | . . . . Repair Stations . | . . . . Recycling Units . | . . . . Scanalyzers . | . . . . Garrison Access . | . . . . Terminal Hacks 2 | . 2 . . Dispatch Records 1 | . 1 . . Zone Layout 1 | . 1 . . Fabricator Hacks . | . . . . Repair Station Hacks . | . . . . Recycling Unit Hacks . | . . . . Scanalyzer . | . . . . Garrison Access Hacks . | . . . . Unauthorized Hacks . | . . . . Terminals . | . . . . Fabricators . | . . . . Repair Stations . | . . . . Recycling Units . | . . . . Scanalyzers . | . . . . Garrison Access . | . . . . Data Cores Recovered . | . . . . Used . | . . . . Hacking Detections 2 | . 2 . . Full Trace Events . | . . . . Feedback Events . | . . . . Feedback Blocked . | . . . . Robot Schematics Acquired . | . . . . Robots Built . | . . . . Authchips . | . . . . Time . | . . . . Total Robot Build Rating . | . . . . Part Schematics Acquired . | . . . . Parts Built . | . . . . Authchips . | . . . . Time . | . . . . Total Part Build Rating . | . . . . Part Studies Acquired . | . . . . Parts Repaired . | . . . . Time . | . . . . Parts Recycled . | . . . . Recycled Matter . | . . . . Retrieved Matter . | . . . . Retrieved Components . | . . . . Parts Scanalyzed . | . . . . Part Schematics Acquired . | . . . . Parts Damaged . | . . . . Bothacking | -11 -10 -9 -8 ------------ Run | Yrd Mat Mat Mat Used RIF Installer . | . . . . Robots Hacked . | . . . . Non-combat . | . . . . Combat . | . . . . Robot Hacks Applied . | . . . . Relay Couplers Released . | . . . . Fabnet Peak Effective % . | . . . . Robots Rewired . | . . . . Allies Hacked . | . . . . Hacks Repelled . | . . . . Allies | -11 -10 -9 -8 -------- Run | Yrd Mat Mat Mat Total Allies . | . . . . Largest Group . | . . . . Highest-Rated Group . | . . . . Highest-Rated Ally . | . . . . Total Orders . | . . . . Ally Attacks . | . . . . Total Damage . | . . . . Kills . | . . . . Allies Corrupted . | . . . . Allies Melted . | . . . . Intel | -11 -10 -9 -8 ------- Run | Yrd Mat Mat Mat Active Infowar (turns) 722 | . . 566 156 Optics 516 | . . 516 . Structural 197 | . . 50 147 Seismic 155 | . . . 155 Robot Analysis Total . | . . . . Derelict Logs Recovered . | . . . . Drone Launches . | . . . . Drone Recoveries . | . . . . Exploration | -11 -10 -9 -8 ------------- Run | Yrd Mat Mat Mat Turns Passed 1191 | 95 187 693 216 Spaces Moved 626 | 59 135 337 95 Core 42 | 20 . 2 20 Treads 85 | . . 35 50 Legs 384 | 39 135 185 25 Wheels 115 | . . 115 . Hover . | . . . . Flight . | . . . . Fastest Speed 50 | 50 120 90 100 Average Speed 132 | 131 120 137 136 Slowest Speed 400 | 200 120 400 160 Overloaded Moves . | . . . . Propulsion Burnouts . | . . . . Robots Hopped . | . . . . Potential Cave-ins . | . . . . Cave-ins Triggered . | . . . . Exploration Rate (%) 15 | 4 20 25 12 Regions Visited 3 Branch Regions . Pre-discovered Areas . | . . . . Known Exits Taken . | . . . . Unknown Exits Taken 3 | 1 1 1 . Scrap Searched . | . . . . Spaces Dug . | . . . . Terrain Destroyed . | . . . . Melee . | . . . . Projectile . | . . . . AOE . | . . . . Terrain Rammed . | . . . . Walls Destroyed . | . . . . Machines Disabled . | . . . . Actions | -11 -10 -9 -8 --------- Run | Yrd Mat Mat Mat Total 816 | 76 144 449 147 Wait 1 | . . 1 . Move 623 | 58 134 336 95 Hop . | . . . . Pick Up 33 | 12 1 15 5 Fast Attach 1 | . . . 1 Attach 28 | 6 1 12 9 Detach . | . . . . Swap 1 | . . 1 . Drop 3 | . . 2 1 Fire 125 | . 8 81 36 Melee . | . . . . Ram 1 | . . 1 . Kick . | . . . . Crush . | . . . . Escape Stasis . | . . . . Rewire . | . . . . Trap . | . . . . Miscellaneous . | . . . . Route ------- -11/Scrapyard -10/Materials (discovered 2 exits: [*Mat] / [*Sub]) -9/Materials -8/Materials History --------- Turn | Location | Event 10 | -11/Scrapyard | Discovered new exit (range 16) 96 | -11/Scrapyard | Entered Materials 161 | -10/Materials | Discovered new exit (range 17) 270 | -10/Materials | Discovered new exit (range 9) 283 | -10/Materials | Entered another Materials area 283 | -9/Materials | Evolved 2 slots: Power x1, Utility x1 303 | -9/Materials | Build established: Mutant 733 | -9/Materials | Lost 6 parts (1p2n3w) 834 | -9/Materials | Discovered new exit (range 15) 873 | -9/Materials | Core integrity fell below 50% 885 | -9/Materials | Core integrity fell below 20% 920 | -9/Materials | Lost 6 parts (3n1u2w) 976 | -9/Materials | Entered another Materials area 976 | -8/Materials | Evolved 2 slots: Utility x2 1100 | -8/Materials | Lost 3 parts (1p1u1w) 1140 | -8/Materials | Core integrity fell below 50% 1151 | -8/Materials | Core integrity fell below 20% 1166 | -8/Materials | Lost 7 parts (1p2n2u2w) 1192 | -8/Materials | Destroyed by G-47 Trooper with Particle Gun Last Messages --------------- 01132_ Overheating: System interference. 01132_ Seismic Detector temporarily disabled. 01133_ Acquired Ion Engine. 01135_ Seismic Detector destroyed. 01138_ R-06 Scavenger collects Lgt. Nuclear Core. 01138_ Dropped Heat Sink. 01138_ Acquired Imp. Heat Sink. 01139_ G-47 Trooper suffers critical hit (Burn). 01142_ R-06 Scavenger collects Heat Sink. 01142_ U-05 Engineer destroyed. 01148_ R-06 Scavenger collects Prototype Hover Unit. 01150_ Critical hit (Burn: +37). 01152_ R-06 Scavenger collects Prototype Hover Unit. 01165_ K-01 Serf suffers critical hit (Burn). 01165_ K-01 Serf destroyed. 01167_ Acquired 13 matter. 01185_ Acquired Minigun. Map ----- +----------------------------------------------------+ | ?????????????????????????????????????????????????? | | ?????????????????????????????????????????????????? | | ?????????????????????????????????????????????????? | | ?????????????????????????????????????????????????? | | ?????????????????????????????????????????????????? | | ?????????????????????????????????????????????????? | | ?????????????????????????????????????????????????? | | ?????????????????????????????????????????????????? | | ?????????????????????????????????????????????????? | | ?????????????????????????????????????????????????? | | ?????????????????????????????????????????????????? | | ?????????????????????????????????????????????????? | | ?????????????????????????????????????????????????? | | ?????????????????????????????????????????????????? | | ?????????????????????????????????????????????????? | | ?????????????????????????????????????????????????? | | ?????????????????????????????????????????????????? | | ?????????????????????????????????????????????????? | | ?????????????????????????????????????????????????? | | ?????????????????????????????????????????????????? | | ?????????????????????????????????????????????????? | | ?????????????????????????????????????????????????? | | ?????????????????????????????????????????????????? | | ????????????????????????####+###?????????????????? | | ????????????????????????# #?????????????????? | | ????????????????????????#@ """ #?????????????????? | | ????????????????????????# """ #?????????????????? | | ????????????????????????# """ #?????????????????? | | ????????????????????????# #?????????????????? | | ????????????????????????# g #???????????????### | | ???????????????????########g###################### | | ???????????? gg | | ????????????? T * | | ???????????? | | ????????????? ##########/#############+######"# | | ??????????????????????????# "??????????????????? | | ??????????????????????????# "??????????????????? | | ??????????????????????????# "??????????????????? | | ??????????????????????????# ??????????????????? | | ??????????????????????????# ??????????????????? | | ??????????????????????????? ???????????????????? | | ???????????????????????????##???????????????????? | | ?????????????????????????????????????????????????= | | ?????????????????????????????????????????????????= | | ????????????????????????????????????????????????? | | ?????????????????????????????????????????????????? | | ?????????????????????????????????????????????????? | | ?????????????????????????????????????????????????? | | ?????????????????????????????????????????????????? | | ?????????????????????????????????????????????????? | +----------------------------------------------------+ Best States ------------- Heat Dissipation 45 Energy Generation 17 Energy Capacity 415 Matter Stores 500 Matter Capacity 500 Sight Range 18 Terrain Scan Density 85 Evasion (%) 55 Recoil Reduction 2 Item Schematics ----------------- None Robot Schematics ------------------ None Fabricated ------------ Nothing Repaired ---------- Nothing Studied --------- None Alien Tech Used ----------------- None Achievements -------------- For Emergencies Only Ghost 'Em Spot Them First Well Done Challenges ------------ None Game ------ Seed AlphaAssaultMonowheel Manual? 0 Play Time 00:15:59 Cumulative 51.0 hours Start 2025.10.22 @ 18:36:12 End 2025.10.22 @ 18:49:28 Sessions 1 Manual Loads 0 Difficulty Rogue Special Mode None Game No. 58 Rogue 51 Adventurer 5 Explorer 2 Win Type - Total 0 Types 0/0/0/0/0/0/0/0/0/0 Lore% 19 Gallery% 34 Achievement% 16 Wizard Run 0 Options --------- Layout 1 ASCII 0 Keyboard 0 Movement Arrows Keybinds 0 Fullscreen 0 Font 32/Terminus Map View 50x40 Zoom Use 0% Tactical HUD 1 Map Filters NONE Filters NONE Steam 1 RUN: a786f4b7-7f0f-4633-b17c-29ab2f5ed359